bitfinex-derivatives/quotes_BTCF0:USTF0_20220102
["timestamp","ask_amount","ask_price","bid_price","bid_amount"]
[1641130034043,1.29262575,47134.0,47130.0,0.36167703]
[1641130034643,1.47162575,47134.0,47131.0,0.36167703]
[1641130035747,0.09044478,47133.0,47131.0,0.36167703]
[1641130036548,0.178,47133.0,47131.0,0.54567703]
[1641130037246,0.09044478,47132.0,47131.0,0.184]
[1641130038546,0.26744478,47132.0,47131.0,0.369]
[1641130040051,0.09044478,47132.0,47130.0,0.60241544]
[1641130040559,0.26744478,47132.0,47130.0,0.78741544]
[1641130041152,0.09044478,47131.0,47130.0,0.78741544]
[1641130041955,0.09044478,47131.0,47130.0,0.60241544]
[1641130042356,0.09044478,47131.0,47129.0,0.84412433]
[1641130042555,0.09044478,47131.0,47130.0,0.187]
[1641130042956,1.29262575,47135.0,47130.0,0.187]
[1641130043757,1.38307053,47135.0,47130.0,0.78977414]
[1641130043959,1.38307053,47135.0,47130.0,0.60277414]
[1641130044758,1.56107053,47135.0,47130.0,0.78477414]
[1641130044958,1.56107053,47135.0,47131.0,0.317518]
[1641130045663,0.09044478,47134.0,47131.0,0.317518]
[1641130046060,0.09044478,47134.0,47130.0,0.67373414]
[1641130046661,0.26544478,47134.0,47130.0,0.85773414]
[1641130046861,0.175,47134.0,47130.0,0.85773414]
[1641130047862,0.09044478,47133.0,47130.0,0.85773414]
[1641130048062,0.09044478,47133.0,47130.0,0.67373414]
[1641130048662,0.26944478,47133.0,47131.0,0.92114314]
[1641130049461,0.179,47133.0,47131.0,0.92114314]
[1641130050063,0.09044478,47132.0,47131.0,0.318369]
[1641130050661,0.26044478,47132.0,47131.0,0.504369]
[1641130050865,0.17,47132.0,47131.0,1.10714314]
[1641130051563,0.17,47132.0,47131.0,1.11693714]
[1641130051763,0.17,47132.0,47131.0,0.514163]
[1641130051966,0.26044478,47132.0,47131.0,0.514163]
[1641130052564,0.26044478,47132.0,47131.0,0.328163]
[1641130052767,0.25644478,47132.0,47131.0,0.514163]
[1641130054068,0.09044478,47132.0,47131.0,0.93098218]
[1641130054771,0.25544478,47132.0,47131.0,1.11698218]
[1641130055369,0.165,47132.0,47131.0,1.11698218]
[1641130056172,0.165,47132.0,47131.0,0.514163]
[1641130056370,0.25544478,47132.0,47131.0,0.514163]
[1641130056571,0.25544478,47132.0,47131.0,0.328163]
[1641130056870,0.25444478,47132.0,47131.0,0.516163]
[1641130057270,0.25444478,47132.0,47131.0,1.36028733]
[1641130057870,0.25444478,47132.0,47131.0,0.516163]
[1641130058073,0.09044478,47132.0,47131.0,0.328163]
[1641130058773,0.25144478,47132.0,47131.0,0.516163]
[1641130059575,0.25144478,47132.0,47131.0,0.6367184]
[1641130059773,0.161,47132.0,47131.0,1.23959314]
[1641130059971,1.29262575,47134.0,47131.0,1.05159314]
[1641130060173,1.29262575,47134.0,47131.0,0.4487184]
[1641130060473,0.09044478,47132.0,47131.0,1.59662827]
[1641130060673,0.09044478,47132.0,47131.0,1.78362827]
[1641130061072,0.09044478,47132.0,47131.0,1.90418403]
[1641130061278,0.158,47134.0,47131.0,1.0600597]
[1641130061473,0.158,47134.0,47131.0,0.93950394]
[1641130062176,0.09044478,47133.0,47131.0,0.75250394]
[1641130062375,0.09044478,47133.0,47132.0,0.60286477]
[1641130062775,1.29262575,47136.0,47132.0,0.84412433]
[1641130062977,1.29262575,47136.0,47132.0,0.96467899]
[1641130063278,1.29262575,47136.0,47132.0,0.84412433]
[1641130063779,1.29262575,47136.0,47134.0,0.60283964]
[1641130064577,1.29262575,47136.0,47133.0,0.60283964]
[1641130064777,1.29262575,47136.0,47135.0,0.317972]
[1641130064978,1.29262575,47136.0,47134.0,0.191]
[1641130065180,1.38307053,47138.0,47135.0,0.60283964]
[1641130065978,1.29262575,47137.0,47134.0,0.60283964]
[1641130066480,1.29052575,47137.0,47135.0,0.52443567]
[1641130066689,1.29052575,47137.0,47135.0,0.96388054]
[1641130066890,1.29052575,47137.0,47136.0,0.009794]
[1641130067091,0.09044478,47138.0,47136.0,0.61263364]
[1641130067291,0.09044478,47138.0,47137.0,0.42429062]
[1641130067490,0.02644478,47138.0,47137.0,0.42429062]
[1641130067691,1.40805073,47142.0,47137.0,0.92255062]
[1641130067890,2.21907214,47144.0,47137.0,1.58667495]
[1641130068091,2.21907214,47144.0,47141.0,0.14033567]
[1641130068293,2.21907214,47144.0,47141.0,0.20728567]
[1641130068492,2.21907214,47144.0,47142.0,0.74245966]
[1641130068896,0.81102141,47145.0,47142.0,0.74245966]
[1641130069596,0.82628067,47147.0,47144.0,0.021207]
[1641130069793,0.16599566,47145.0,47144.0,0.021207]
[1641130069993,0.16599566,47145.0,47144.0,0.30187834]
[1641130070193,0.16599566,47145.0,47144.0,0.30512934]
[1641130070396,0.16599566,47145.0,47144.0,0.31492334]
[1641130070593,0.16599566,47145.0,47144.0,1.62099529]
[1641130070798,0.16599566,47145.0,47144.0,2.31399529]
[1641130070995,0.40319141,47147.0,47144.0,2.31399529]
[1641130071197,0.40319141,47147.0,47146.0,1.913]
[1641130071399,0.40319141,47150.0,47146.0,1.913]
[1641130071596,0.40319141,47150.0,47146.0,2.230855]
[1641130071996,0.18,47156.0,47149.0,1.25333567]
[1641130072398,0.18,47156.0,47150.0,0.318693]
[1641130072598,0.18,47156.0,47150.0,0.42338979]
[1641130072797,0.02120854,47158.0,47150.0,0.42338979]
[1641130072998,0.18,47156.0,47150.0,0.42338979]
[1641130073198,0.02120854,47158.0,47150.0,0.42338979]
[1641130073398,0.18,47157.0,47150.0,0.42338979]
[1641130073600,0.18,47157.0,47150.0,1.53638979]
[1641130074002,1.30023386,47159.0,47156.0,1.113]
[1641130074202,1.30023386,47159.0,47158.0,0.18]
[1641130074402,1.30023386,47159.0,47157.0,0.323494]
[1641130074702,1.30023386,47160.0,47158.0,0.28353666]
[1641130074901,1.16164586,47160.0,47159.0,1.81519707]
[1641130075101,0.44021443,47160.0,47159.0,1.81519707]
[1641130075302,1.40805073,47164.0,47159.0,1.81519707]
[1641130075303,1.40805073,47164.0,47159.0,2.14349346]
[1641130075500,1.52072085,47171.0,47164.0,1.613]
[1641130075702,1.52072085,47171.0,47170.0,1.293]
[1641130076000,1.52072085,47171.0,47170.0,2.30784703]
[1641130076404,1.52072085,47183.0,47170.0,2.31989442]
[1641130076605,1.52072085,47183.0,47182.0,0.02118971]
[1641130076801,1.52072085,47183.0,47182.0,0.09160971]
[1641130077002,1.52072085,47183.0,47182.0,0.41163271]
[1641130077202,1.52072085,47183.0,47182.0,0.07042]
[1641130077402,0.32033567,47195.0,47182.0,0.07042]
[1641130077802,0.18,47191.0,47182.0,0.07042]
[1641130078001,0.32033567,47195.0,47185.0,0.14033567]
[1641130078502,0.02119146,47196.0,47185.0,0.14033567]
[1641130078704,0.02119146,47196.0,47186.0,0.319604]
[1641130078906,0.029794,47197.0,47186.0,0.319604]
[1641130079105,0.18,47195.0,47186.0,0.319604]
[1641130079504,0.18,47192.0,47185.0,0.18833567]
[1641130079705,0.18,47195.0,47185.0,0.18833567]
[1641130080005,0.18,47195.0,47191.0,0.14033567]
[1641130080204,0.18,47192.0,47191.0,0.14033567]
[1641130080403,0.029794,47197.0,47191.0,0.14033567]
[1641130080404,0.18,47195.0,47191.0,0.14033567]
[1641130080605,0.18,47192.0,47191.0,0.14033567]
[1641130080807,0.18,47195.0,47191.0,0.32033567]
[1641130081205,0.18,47192.0,47191.0,0.32033567]
[1641130081406,0.20119467,47192.0,47185.0,0.14033567]
[1641130081608,0.18,47186.0,47185.0,0.14033567]
[1641130082809,0.367,47186.0,47185.0,0.26333567]
[1641130083008,0.368,47186.0,47185.0,0.26333567]
[1641130083308,0.45834588,47186.0,47185.0,0.26333567]
[1641130083507,0.27834588,47186.0,47185.0,0.26333567]
[1641130084112,0.27834588,47186.0,47185.0,0.14033567]
[1641130084308,0.09134588,47186.0,47185.0,0.14033567]
[1641130084508,0.27134588,47186.0,47185.0,0.14033567]
[1641130084707,0.45834588,47186.0,47185.0,0.26933567]
[1641130085107,0.188,47186.0,47185.0,0.26933567]
[1641130085508,0.78472695,47186.0,47185.0,0.26933567]
[1641130085808,0.96472695,47186.0,47185.0,0.26933567]
[1641130086209,0.77772695,47186.0,47185.0,0.14033567]
[1641130086409,0.59772695,47186.0,47185.0,0.14033567]
[1641130086809,0.78572695,47186.0,47185.0,0.25333567]
[1641130087510,0.96572695,47186.0,47185.0,0.25333567]
[1641130087709,0.78572695,47186.0,47185.0,0.25333567]
[1641130088111,0.59772695,47186.0,47185.0,0.21124567]
[1641130088411,0.59672695,47186.0,47185.0,0.21124567]
[1641130088910,0.76972695,47186.0,47185.0,0.34824567]
[1641130089411,0.173,47186.0,47185.0,0.34824567]
[1641130090211,0.35820894,47190.0,47185.0,0.21124567]
[1641130090812,0.54420894,47190.0,47185.0,0.34424567]
[1641130092212,0.35820894,47190.0,47185.0,0.21124567]
[1641130092817,0.55220894,47190.0,47185.0,0.21124567]
[1641130094817,0.54520894,47190.0,47185.0,0.37024567]
[1641130095418,0.187,47190.0,47185.0,0.37024567]
[1641130096220,0.189794,47191.0,47185.0,0.21124567]
[1641130097024,0.189794,47191.0,47185.0,0.36224567]
[1641130097025,0.376794,47191.0,47185.0,0.36224567]
[1641130098026,0.06,47190.0,47185.0,0.36224567]
[1641130098229,0.18,47190.0,47185.0,0.21124567]
[1641130098929,0.194,47190.0,47185.0,0.21124567]
[1641130100231,0.18,47190.0,47185.0,0.21124567]
[1641130100834,0.374,47190.0,47185.0,0.21124567]
[1641130101431,0.194,47190.0,47185.0,0.21124567]
[1641130101931,0.374,47190.0,47185.0,0.21124567]
[1641130102134,0.009794,47191.0,47185.0,0.21124567]
[1641130102432,0.18,47190.0,47185.0,0.21124567]
[1641130102633,0.009794,47191.0,47185.0,0.21124567]
[1641130102834,0.202794,47191.0,47185.0,0.21124567]
[1641130104035,0.18,47190.0,47185.0,0.21124567]
[1641130104234,0.009794,47191.0,47185.0,0.21124567]
[1641130104934,0.202794,47191.0,47185.0,0.21124567]
[1641130105935,0.193,47191.0,47186.0,0.02118781]
[1641130106134,0.18,47200.0,47193.0,0.42379094]
[1641130106335,0.02118781,47204.0,47195.0,0.14033567]
[1641130106534,0.02118781,47204.0,47195.0,0.21796567]
[1641130106736,0.02118781,47204.0,47196.0,0.001012]
[1641130106934,0.203,47197.0,47196.0,0.001012]
[1641130108049,1.9657,47207.0,47197.0,0.220747]
[1641130108248,0.02118451,47212.0,47196.0,0.001012]
[1641130108450,1.8545,47213.0,47195.0,1.41462713]
[1641130108451,0.18,47209.0,47204.0,0.14033567]
[1641130108650,0.18,47212.0,47204.0,0.14033567]
[1641130109852,0.18,47211.0,47204.0,0.14033567]
[1641130110852,0.18,47211.0,47204.0,0.32333567]
[1641130111653,0.14033567,47216.0,47205.0,0.317862]
[1641130111855,0.14033567,47216.0,47205.0,0.376782]
[1641130112458,0.18,47214.0,47210.0,0.14033567]
[1641130113156,0.14033567,47216.0,47210.0,0.14033567]
[1641130114458,0.53820894,47215.0,47210.0,0.14033567]
[1641130114858,0.53820894,47215.0,47210.0,0.31633567]
[1641130115259,0.18,47214.0,47210.0,0.31633567]
[1641130116359,0.18,47214.0,47210.0,0.14033567]
[1641130116960,0.35820894,47215.0,47210.0,0.32333567]
[1641130117859,0.14033567,47216.0,47210.0,0.32333567]
[1641130117860,0.49854461,47216.0,47210.0,0.32333567]
[1641130118259,0.49854461,47216.0,47210.0,0.14033567]
[1641130118962,0.67854461,47216.0,47210.0,0.31633567]
[1641130120364,0.49854461,47216.0,47210.0,0.14033567]
[1641130120966,0.49854461,47216.0,47210.0,0.32133567]
[1641130121965,0.67854461,47216.0,47210.0,0.32133567]
[1641130122668,0.32033567,47216.0,47210.0,0.32133567]
[1641130122866,0.14033567,47216.0,47210.0,0.32133567]
[1641130123066,0.32033567,47216.0,47210.0,0.32133567]
[1641130123267,0.14033567,47216.0,47210.0,0.32133567]
[1641130123469,0.67854461,47216.0,47210.0,0.32133567]
[1641130123669,0.49854461,47216.0,47210.0,0.32133567]
[1641130124369,0.49854461,47216.0,47210.0,0.14033567]
[1641130124968,0.49854461,47216.0,47210.0,0.32033567]
[1641130125669,0.49854461,47216.0,47210.0,0.74397165]
[1641130125871,0.14033567,47216.0,47210.0,0.74397165]
[1641130126069,0.14033567,47216.0,47211.0,0.317098]
[1641130126270,0.14033567,47216.0,47210.0,0.56397165]
[1641130126673,0.14033567,47216.0,47210.0,0.14033567]
[1641130126870,0.14033567,47216.0,47210.0,0.32433567]
[1641130128273,0.14033567,47216.0,47210.0,0.14033567]
[1641130128871,0.14033567,47216.0,47210.0,0.32433567]
[1641130129774,0.49854461,47216.0,47210.0,0.32433567]
[1641130130278,0.35820894,47216.0,47210.0,0.14033567]
[1641130130676,0.35820894,47216.0,47215.0,0.14033567]
[1641130131479,0.59672695,47218.0,47215.0,0.14033567]
[1641130131678,0.35820894,47222.0,47215.0,0.14033567]
[1641130132579,0.35820894,47222.0,47216.0,0.31717]
[1641130132980,0.55938815,47223.0,47216.0,0.31717]
[1641130133179,0.55938815,47223.0,47215.0,0.33133567]
[1641130133879,0.37938815,47223.0,47215.0,0.33133567]
[1641130134281,0.37938815,47223.0,47215.0,0.14033567]
[1641130134482,0.02117921,47223.0,47215.0,0.14033567]
[1641130134682,0.02117921,47223.0,47216.0,0.317591]
[1641130134882,0.37938815,47223.0,47216.0,0.317591]
[1641130135285,0.35820894,47223.0,47216.0,0.317591]
[1641130136085,0.35820894,47223.0,47217.0,0.42357239]
[1641130136286,0.35820894,47223.0,47217.0,1.79479622]
[1641130136586,0.35820894,47223.0,47220.0,0.42354104]
[1641130136785,0.35820894,47224.0,47222.0,0.14033567]
[1641130137186,0.35820894,47224.0,47223.0,0.000677]
[1641130137987,0.35820894,47229.0,47223.0,0.000677]
[1641130138786,0.35820894,47230.0,47227.0,0.14033567]
[1641130138986,0.53820894,47230.0,47227.0,0.22458567]
[1641130139586,0.09026375,47234.0,47227.0,0.22458567]
[1641130139991,1.4931183,47230.0,47227.0,0.22458567]
[1641130140589,1.3131183,47230.0,47227.0,0.22458567]
[1641130140789,0.09026375,47229.0,47227.0,0.22458567]
[1641130140991,0.09026375,47229.0,47227.0,0.40958567]
[1641130141688,1.3131183,47231.0,47227.0,0.40958567]
[1641130141889,1.3131183,47231.0,47227.0,0.43075524]
[1641130142289,1.3131183,47231.0,47228.0,0.317555]
[1641130142593,1.3131183,47231.0,47229.0,0.08127698]
[1641130142788,0.8896785,47231.0,47229.0,1.19427698]
[1641130142998,0.97994225,47234.0,47230.0,0.314837]
[1641130143398,0.97994225,47234.0,47230.0,1.427837]
[1641130143995,0.97994225,47234.0,47231.0,0.02116758]
[1641130144398,0.97994225,47234.0,47232.0,0.318095]
[1641130144598,0.09026375,47234.0,47232.0,0.498095]
[1641130144797,0.54825988,47236.0,47233.0,0.14033567]
[1641130144998,0.09026375,47236.0,47233.0,0.14033567]
[1641130145197,0.09026375,47236.0,47234.0,0.316411]
[1641130146599,0.09026375,47239.0,47235.0,0.07315401]
[1641130146800,0.09026375,47239.0,47238.0,0.14033567]
[1641130147002,0.09068718,47239.0,47238.0,0.22679567]
[1641130147703,0.00042343,47239.0,47238.0,0.22679567]
[1641130148506,0.09068718,47239.0,47238.0,0.22679567]
[1641130149109,0.09068718,47239.0,47238.0,0.41879567]
[1641130149312,0.09068718,47239.0,47238.0,1.53179567]
[1641130149512,0.02,47247.0,47240.0,0.33267537]
[1641130149712,1.3216086,47245.0,47242.0,1.13416305]
[1641130150213,1.3216086,47245.0,47243.0,0.000416]
[1641130150714,1.3216086,47245.0,47244.0,0.06657335]
[1641130150914,1.3216086,47245.0,47244.0,0.22807058]
[1641130151116,0.02,47247.0,47244.0,0.54542658]
[1641130151514,0.02,47247.0,47244.0,0.47885323]
[1641130151916,0.02,47247.0,47244.0,0.16149723]
[1641130152716,0.02,47247.0,47244.0,0.14033567]
[1641130153119,0.02,47247.0,47244.0,0.32833567]
[1641130153319,0.18,47245.0,47238.0,0.50113262]
[1641130153520,0.18,47241.0,47238.0,0.50113262]
[1641130153717,0.02116936,47245.0,47238.0,0.50113262]
[1641130153916,0.18,47243.0,47238.0,0.14033567]
[1641130154117,0.18,47240.0,47238.0,0.14033567]
[1641130154316,0.18,47239.0,47238.0,0.14033567]
[1641130154519,0.009794,47240.0,47238.0,0.14033567]
[1641130155117,0.198794,47240.0,47238.0,0.14033567]
[1641130156318,0.009794,47240.0,47238.0,0.14033567]
[1641130156924,1.43249269,47239.0,47238.0,0.14033567]
[1641130157120,1.43249269,47239.0,47238.0,0.19033567]
[1641130157920,0.198794,47240.0,47238.0,0.19033567]
[1641130158120,0.189,47240.0,47238.0,0.19033567]
[1641130158425,1.52072085,47245.0,47238.0,0.14033567]
[1641130159023,1.71472085,47245.0,47238.0,0.14033567]
[1641130159622,0.194,47245.0,47238.0,0.14033567]
[1641130160423,0.37987765,47247.0,47238.0,0.14033567]
[1641130161027,0.18,47243.0,47238.0,0.21933567]
[1641130162026,0.56687765,47247.0,47238.0,0.21933567]
[1641130162227,0.18,47243.0,47238.0,0.21933567]
[1641130162429,0.18,47243.0,47238.0,0.14033567]
[1641130163127,0.377,47243.0,47238.0,0.14033567]
[1641130163530,0.18,47240.0,47233.0,0.14033567]
[1641130163728,0.18,47237.0,47233.0,0.14033567]
[1641130163927,0.18,47234.0,47223.0,0.60124503]
[1641130164128,0.18,47230.0,47223.0,0.96204198]
[1641130164329,0.18,47224.0,47223.0,0.36079695]
[1641130164527,0.00057657,47224.0,47223.0,0.36079695]
[1641130165129,0.14057657,47224.0,47223.0,0.36079695]
[1641130165329,0.14057657,47224.0,47222.0,0.60124503]
[1641130165529,0.18057657,47223.0,47213.0,2.34173262]
[1641130165730,0.14,47224.0,47213.0,0.50113262]
[1641130166629,0.14,47224.0,47213.0,0.14033567]
[1641130167029,0.14033567,47220.0,47213.0,0.14033567]
[1641130167628,0.14033567,47220.0,47214.0,0.316812]
[1641130167828,0.14033567,47220.0,47213.0,0.14033567]
[1641130168831,0.15012967,47220.0,47213.0,0.14033567]
[1641130169030,0.33612967,47220.0,47213.0,0.14033567]
[1641130170333,0.15012967,47220.0,47213.0,0.14033567]
[1641130171133,0.33512967,47220.0,47213.0,0.14033567]
[1641130172530,0.15012967,47220.0,47213.0,0.14033567]
[1641130173131,0.32912967,47220.0,47213.0,0.14033567]
[1641130174533,0.15012967,47220.0,47213.0,0.14033567]
[1641130175033,0.32912967,47220.0,47213.0,0.14033567]
[1641130176534,0.15012967,47220.0,47213.0,0.14033567]
[1641130177035,0.35987765,47214.0,47213.0,0.14033567]
[1641130177835,0.35987765,47214.0,47213.0,0.15236927]
[1641130178035,0.35987765,47215.0,47213.0,0.14033567]
[1641130179035,0.51987765,47215.0,47214.0,0.01203276]
[1641130179835,0.16,47215.0,47214.0,1.45502083]
[1641130180434,0.35987765,47217.0,47214.0,1.45502083]
[1641130180835,0.35987765,47217.0,47215.0,0.02117485]
[1641130181141,0.50687765,47217.0,47216.0,0.19203276]
[1641130181335,0.50687765,47217.0,47216.0,0.21320657]
[1641130181536,0.147,47217.0,47216.0,0.21320657]
[1641130181836,0.147,47217.0,47216.0,0.10357657]
[1641130182338,0.35987765,47218.0,47216.0,0.10357657]
[1641130182339,0.35987765,47218.0,47216.0,1.54656464]
[1641130182538,0.35987765,47219.0,47216.0,1.54656464]
[1641130182739,0.35987765,47219.0,47217.0,0.01203276]
[1641130183141,0.52687765,47219.0,47217.0,0.19203276]
[1641130183341,0.52687765,47219.0,47217.0,0.21320659]
[1641130183845,0.52687765,47219.0,47218.0,0.01203276]
[1641130184542,0.35987765,47219.0,47218.0,0.01203276]
[1641130184742,0.35987765,47219.0,47217.0,0.02117383]
[1641130185042,0.52687765,47219.0,47217.0,0.02117383]
[1641130185240,0.167,47219.0,47217.0,0.02117383]
[1641130185443,0.7667773,47219.0,47217.0,0.02117383]
[1641130185642,0.7667773,47219.0,47217.0,0.20117383]
[1641130186041,0.36104224,47218.0,47217.0,0.20117383]
[1641130186242,0.36104224,47218.0,47217.0,0.02117383]
[1641130186644,0.5997773,47219.0,47217.0,0.03320644]
[1641130187045,0.167,47218.0,47217.0,0.02117383]
[1641130187650,0.167,47218.0,47217.0,0.03320649]
[1641130187846,0.52804211,47218.0,47217.0,0.03320649]
[1641130188544,0.167,47218.0,47217.0,0.03320649]
[1641130189045,0.334,47218.0,47217.0,0.03320649]
[1641130190444,0.5997773,47219.0,47217.0,0.03320649]
[1641130190645,0.14033567,47220.0,47217.0,0.62441404]
[1641130190844,0.14033567,47220.0,47217.0,0.61238138]
[1641130191044,0.168,47220.0,47217.0,0.61238138]
[1641130191246,0.168,47220.0,47219.0,0.35477443]
[1641130192346,0.6095713,47226.0,47217.0,0.35477443]
[1641130192347,0.36055318,47223.0,47217.0,0.35477443]
[1641130192945,0.36055318,47223.0,47217.0,0.41146443]
[1641130193149,0.54855318,47223.0,47217.0,0.41146443]
[1641130193347,0.36055318,47221.0,47217.0,0.07786423]
[1641130193546,0.36055318,47221.0,47220.0,0.20117159]
[1641130193748,0.4117773,47222.0,47221.0,0.06298223]
[1641130193946,0.4117773,47222.0,47221.0,0.14033567]
[1641130194147,0.4117773,47222.0,47221.0,0.54524579]
[1641130194349,0.4117773,47222.0,47221.0,0.66555855]
[1641130195047,0.83971452,47229.0,47221.0,0.66555855]
[1641130195246,0.83971452,47229.0,47224.0,0.18]
[1641130195447,0.83971452,47229.0,47228.0,0.18]
[1641130195647,0.83971452,47229.0,47228.0,0.26683]
[1641130196046,0.83971452,47229.0,47228.0,0.38714276]
[1641130196247,0.14033567,47233.0,47228.0,0.39917475]
[1641130196448,0.14033567,47233.0,47228.0,0.71778975]
[1641130196950,0.14033567,47233.0,47229.0,0.01203199]
[1641130197149,0.29533567,47233.0,47229.0,0.96003532]
[1641130197348,0.29533567,47233.0,47229.0,0.83972256]
[1641130197548,0.29533567,47233.0,47229.0,0.82769057]
[1641130197950,0.29533567,47233.0,47228.0,0.91452057]
[1641130198952,0.155,47233.0,47232.0,0.20116647]
[1641130199161,0.326,47233.0,47232.0,0.20116647]
[1641130199555,0.326,47233.0,47232.0,0.21319588]
[1641130199951,0.326,47233.0,47232.0,0.64021761]
[1641130200151,0.326,47233.0,47232.0,1.04384209]
[1641130200352,0.98005019,47242.0,47232.0,2.15684209]
[1641130200553,0.98005019,47242.0,47239.0,0.18]
[1641130200753,0.98005019,47242.0,47239.0,0.25711]
[1641130200953,0.83971452,47242.0,47239.0,0.25711]
[1641130201157,0.166,47242.0,47240.0,0.05878273]
[1641130202455,0.16033567,47247.0,47240.0,0.05878273]
[1641130202753,0.16033567,47247.0,47239.0,0.07711]
[1641130203153,0.33433567,47247.0,47239.0,0.07711]
[1641130203655,0.60145005,47240.0,47237.0,0.14033567]
[1641130204054,0.60145005,47240.0,47235.0,1.44298807]
[1641130204254,0.00057657,47236.0,47235.0,1.44298807]
[1641130204658,0.00057657,47236.0,47232.0,0.14033567]
[1641130204855,1.32934538,47243.0,47232.0,0.14033567]
[1641130205261,0.175,47236.0,47232.0,0.14033567]
[1641130205760,0.84216819,47234.0,47232.0,0.14033567]
[1641130206664,0.60154668,47233.0,47232.0,0.14033567]
[1641130207066,0.79134068,47233.0,47232.0,0.14033567]
[1641130207271,0.79134068,47233.0,47228.0,1.44298807]
[1641130207468,0.18,47229.0,47228.0,1.44298807]
[1641130207667,0.25111,47229.0,47228.0,1.44298807]
[1641130207867,0.07111,47229.0,47228.0,1.44298807]
[1641130208468,1.0034957,47229.0,47223.0,1.44298807]
[1641130208968,1.0034957,47229.0,47224.0,0.01203024]
[1641130209169,1.1864957,47229.0,47224.0,0.01203024]
[1641130209369,0.36097964,47225.0,47224.0,0.01203024]
[1641130209771,0.36097964,47225.0,47222.0,0.01203024]
[1641130210169,0.36097964,47225.0,47224.0,0.01203024]
[1641130210371,0.36097964,47225.0,47224.0,0.06402]
[1641130210569,0.36097964,47225.0,47224.0,0.26519085]
[1641130210773,0.36097964,47225.0,47224.0,0.25605024]
[1641130210970,0.36097964,47225.0,47224.0,0.71559055]
[1641130211170,0.60163274,47227.0,47224.0,0.81906106]
[1641130211371,0.36097964,47230.0,47224.0,0.81906106]
[1641130211570,0.36097964,47230.0,47229.0,0.42025565]
[1641130211770,7.964e-05,47230.0,47229.0,0.44142127]
[1641130211971,0.60163274,47232.0,47229.0,0.90781318]
[1641130212171,0.60163274,47232.0,47229.0,1.02811413]
[1641130212374,0.60163274,47233.0,47230.0,0.19050931]
[1641130212571,0.60163274,47233.0,47232.0,0.18]
[1641130212771,0.42714206,47233.0,47232.0,1.31416412]
[1641130212971,0.42714206,47233.0,47232.0,1.44984231]
[1641130213376,0.42714206,47238.0,47232.0,1.44984231]
[1641130213572,0.42714206,47238.0,47236.0,0.18]
[1641130213772,0.42714206,47238.0,47236.0,0.08598]
[1641130213972,0.42714206,47238.0,47237.0,0.14033567]
[1641130214173,0.42771863,47238.0,47237.0,0.14033567]
[1641130214975,0.00057657,47238.0,47237.0,0.14033567]
[1641130215173,1.03574476,47238.0,47237.0,0.14033567]
[1641130216375,0.19357657,47238.0,47237.0,0.14033567]
[1641130216674,0.00057657,47238.0,47237.0,0.14033567]
[1641130217275,0.19357657,47238.0,47237.0,0.14033567]
[1641130218475,0.00057657,47238.0,47237.0,0.14033567]
[1641130219175,0.15057657,47238.0,47237.0,0.14033567]
[1641130220580,0.00057657,47238.0,47237.0,0.14033567]
[1641130221184,0.03857657,47238.0,47237.0,0.14033567]
[1641130222589,0.00057657,47238.0,47237.0,0.14033567]
[1641130223287,0.03857657,47238.0,47237.0,0.14033567]
[1641130224492,0.00057657,47238.0,47237.0,0.14033567]
[1641130225295,0.14257657,47238.0,47237.0,0.14033567]
[1641130226493,0.00057657,47238.0,47237.0,0.14033567]
[1641130227395,0.14257657,47238.0,47237.0,0.14033567]
[1641130228595,0.00057657,47238.0,47237.0,0.14033567]
[1641130229297,0.12057657,47238.0,47237.0,0.14033567]
[1641130230506,0.00057657,47238.0,47237.0,0.14033567]
[1641130231210,0.11857657,47238.0,47237.0,0.14033567]
[1641130232307,0.11857657,47238.0,47237.0,0.1523625]
[1641130233212,0.14557657,47238.0,47237.0,0.1523625]
[1641130234517,0.00057657,47238.0,47237.0,0.1523625]
[1641130234714,0.00057657,47238.0,47237.0,0.17352615]
[1641130235216,0.07657657,47238.0,47237.0,0.17352615]
[1641130236616,0.00057657,47238.0,47237.0,0.17352615]
[1641130237318,0.13857657,47238.0,47237.0,0.17352615]
[1641130238518,0.00057657,47238.0,47237.0,0.17352615]
[1641130239428,0.10957657,47238.0,47237.0,0.17352615]
[1641130240628,0.00057657,47238.0,47237.0,0.17352615]
[1641130241330,0.11157657,47238.0,47237.0,0.17352615]
[1641130241529,0.11157657,47238.0,47237.0,0.1523625]
[1641130241733,0.30137057,47238.0,47231.0,0.69270276]
[1641130241929,0.18,47233.0,47231.0,0.69270276]
[1641130242129,0.18,47232.0,47231.0,0.69270276]
[1641130242529,0.18057657,47232.0,47231.0,0.69270276]
[1641130243130,0.18057657,47232.0,47224.0,1.41013537]
[1641130243131,0.18703128,47232.0,47224.0,1.41013537]
[1641130243331,0.18057657,47227.0,47224.0,1.41013537]
[1641130243536,0.00057657,47225.0,47224.0,1.41013537]
[1641130244131,0.00057657,47225.0,47221.0,0.0211724]
[1641130244132,0.00703128,47225.0,47221.0,0.0211724]
[1641130244332,0.00645471,47225.0,47221.0,0.0211724]
[1641130244531,0.14033567,47225.0,47221.0,0.0211724]
[1641130244931,0.00645471,47224.0,47222.0,0.12030089]
[1641130247335,0.16545471,47224.0,47222.0,0.12030089]
[1641130247736,0.00645471,47223.0,47222.0,0.12030089]
[1641130248136,0.00645471,47223.0,47220.0,0.12030089]
[1641130248937,0.00645471,47224.0,47220.0,0.12030089]
[1641130249337,0.175,47223.0,47220.0,0.12030089]
[1641130249536,0.355,47223.0,47220.0,0.12030089]
[1641130249939,0.00645471,47222.0,47220.0,0.12030089]
[1641130250939,0.00645471,47224.0,47219.0,0.12030089]
[1641130251138,0.00645471,47224.0,47218.0,1.41013537]
[1641130251343,0.00645471,47221.0,47220.0,0.12030384]
[1641130251538,0.18,47221.0,47219.0,0.12030384]
[1641130251739,0.18645471,47221.0,47220.0,0.12030384]
[1641130251938,0.18,47221.0,47218.0,0.12030384]
[1641130252740,0.009794,47223.0,47218.0,0.12030384]
[1641130252939,0.009794,47223.0,47217.0,0.12030384]
[1641130253140,0.009794,47223.0,47219.0,0.12030384]
[1641130253340,0.202794,47223.0,47219.0,0.12030384]
[1641130253540,0.202794,47223.0,47218.0,0.12030384]
[1641130253739,0.202794,47223.0,47220.0,0.12030384]
[1641130253942,0.202794,47223.0,47219.0,0.12030384]
[1641130254142,0.202794,47223.0,47216.0,0.16151022]
[1641130254340,0.202794,47223.0,47220.0,0.12030613]
[1641130254640,0.009794,47223.0,47217.0,0.12030613]
[1641130254842,0.009794,47223.0,47221.0,0.12030613]
[1641130255240,0.18,47222.0,47217.0,0.12030613]
[1641130255448,0.18,47221.0,47216.0,0.16151022]
[1641130255646,0.18,47221.0,47218.0,0.12030511]